bitfinex-derivatives/quotes_BNBF0:USTF0_20250807
["timestamp","ask_amount","ask_price","bid_price","bid_amount"]
[1754556061374,0.8729298,766.92,765.96,1.008]
[1754556062172,0.8729298,766.89,765.96,1.008]
[1754556062475,0.8729298,766.89,765.96,1.88405336]
[1754556062873,0.8729298,766.88,765.96,1.008]
[1754556063272,0.8729298,766.85,765.98,0.87605336]
[1754556064669,0.8729298,766.84,765.98,0.87605336]
[1754556066371,0.8729298,766.84,765.99,0.87605336]
[1754556067271,0.8729298,766.8,766.03,0.87605336]
[1754556067772,0.8729298,766.95,766.18,0.87605336]
[1754556068375,0.8729298,766.96,766.18,0.87605336]
[1754556068875,0.8729298,766.94,766.19,0.87605336]
[1754556070371,0.8729298,766.95,766.19,0.87605336]
[1754556071076,0.8729298,766.94,766.19,0.87605336]
[1754556071275,0.8729298,766.95,766.18,0.87605336]
[1754556073677,0.8729298,766.94,766.19,0.87605336]
[1754556074472,0.8729298,766.92,766.2,0.87605336]
[1754556074677,0.8729298,766.95,766.23,0.87605336]
[1754556074876,0.8729298,766.96,766.24,0.87605336]
[1754556075079,1.169671,767.11,766.09,1.166122]
[1754556075380,0.87409057,766.97,766.23,0.8768811]
[1754556076379,0.87409057,766.97,766.24,1.277]
[1754556077081,0.87409057,766.96,766.24,2.1538811]
[1754556077274,0.87409057,766.96,766.24,1.277]
[1754556077480,0.87409057,766.97,766.24,1.277]
[1754556078477,0.87409057,766.98,766.24,1.277]
[1754556079277,0.87409057,766.99,766.24,1.277]
[1754556081685,0.87409057,767.26,766.24,1.277]
[1754556081986,0.87409057,767.39,766.24,1.277]
[1754556082385,0.87409057,767.41,766.24,1.277]
[1754556083285,0.87409057,767.42,766.24,1.277]
[1754556083987,0.87409057,767.36,766.24,1.277]
[1754556084287,0.87409057,767.37,766.24,1.277]
[1754556085386,0.87409057,767.38,766.24,1.277]
[1754556086484,0.87409057,767.39,766.24,1.277]
[1754556087184,1.7507919,767.91,766.24,1.277]
[1754556087185,0.87409057,767.4,766.24,1.277]
[1754556088288,0.87409057,767.41,766.24,1.277]
[1754556089490,0.87409057,767.42,766.24,1.277]
[1754556090387,0.87409057,767.43,766.24,1.277]
[1754556090591,2.924178,768.94,766.24,1.277]
[1754556090592,0.87409057,767.41,766.24,1.277]
[1754556091092,0.87409057,767.42,766.24,1.277]
[1754556091489,0.87409057,767.31,766.28,0.8768811]
[1754556092194,0.87409057,767.31,766.27,0.8768811]
[1754556093289,0.87409057,767.31,766.28,0.8768811]
[1754556093891,0.87409057,767.3,766.29,0.8768811]
[1754556094294,0.87409057,767.3,766.28,0.8768811]
[1754556095199,0.87409057,767.31,766.3,0.8768811]
[1754556095399,1.7507919,767.63,766.3,0.8768811]
[1754556095400,0.87409057,767.3,766.3,0.8768811]
[1754556096295,0.87409057,767.29,766.3,0.8768811]
[1754556096494,0.87409057,767.29,766.29,0.8768811]
[1754556097198,0.87409057,767.28,766.29,0.8768811]
[1754556097401,0.87409057,767.29,766.29,0.8768811]
[1754556098001,0.87409057,767.28,766.29,0.8768811]
[1754556098197,0.87409057,767.28,766.3,0.8768811]
[1754556098902,0.87409057,767.26,766.35,0.8768811]
[1754556099099,0.87409057,767.25,766.36,0.8768811]
[1754556099402,0.87409057,767.26,766.35,0.8768811]
[1754556099903,0.87409057,767.31,766.37,0.8768811]
[1754556100103,0.87409057,767.3,766.37,0.8768811]
[1754556100298,0.87409057,767.31,766.37,0.8768811]
[1754556100902,4.093849,768.43,766.38,0.8768811]
[1754556100903,0.87409057,767.35,766.38,0.8768811]
[1754556101908,0.87409057,767.34,766.38,0.8768811]
[1754556102403,0.87409057,767.34,766.37,0.8768811]
[1754556103203,0.87409057,767.34,766.38,0.8768811]
[1754556103404,0.87409057,767.34,766.37,0.8768811]
[1754556104204,0.87409057,767.34,766.38,0.8768811]
[1754556104407,0.87409057,767.34,766.37,0.8768811]
[1754556105205,0.87409057,767.34,766.38,0.8768811]
[1754556107208,1.10091371,767.7,766.33,0.8768811]
[1754556107412,1.10091371,767.7,766.32,0.8768811]
[1754556107611,0.22682314,767.7,766.32,0.8768811]
[1754556109614,0.22682314,767.7,766.33,0.8768811]
[1754556110711,1.10091371,767.7,766.35,0.8768811]
[1754556111119,0.87409057,767.69,766.35,0.8768811]
[1754556111320,1.10091371,767.7,766.35,0.8768811]
[1754556112116,1.10091371,767.7,766.36,0.8768811]
[1754556112316,1.10091371,767.7,766.35,0.8768811]
[1754556112820,1.10091371,767.7,766.36,0.8768811]
[1754556113516,0.87409057,767.68,766.36,0.8768811]
[1754556114117,0.87409057,767.68,766.37,0.8768811]
[1754556115122,0.87409057,767.67,766.37,0.8768811]
[1754556115416,0.87409057,767.68,766.37,0.8768811]
[1754556116121,0.87409057,767.67,766.37,0.8768811]
[1754556116322,0.87409057,767.68,766.37,0.8768811]
[1754556116523,0.87409057,767.67,766.37,0.8768811]
[1754556117122,0.22682314,767.7,766.24,1.277]
[1754556117424,0.87138793,767.54,766.46,0.87378613]
[1754556118317,0.87138793,767.53,766.46,0.87378613]
[1754556119122,0.87138793,767.52,766.47,0.87378613]
[1754556120122,0.87138793,767.51,766.47,0.87378613]
[1754556121522,0.87138793,767.51,766.48,1.77478613]
[1754556122222,0.87138793,767.5,766.48,1.77478613]
[1754556123420,0.87138793,767.48,766.49,0.87378613]
[1754556124422,1.169671,767.64,766.48,0.901]
[1754556124620,0.87187732,767.47,766.5,0.8744256]
[1754556124819,1.169671,767.64,766.48,0.901]
[1754556125022,0.87187732,767.47,766.5,0.8744256]
[1754556125427,0.87187732,767.46,766.51,0.8744256]
[1754556126424,0.87187732,767.43,766.52,0.8744256]
[1754556127122,0.87187732,767.37,766.56,0.8744256]
[1754556127421,0.87187732,767.38,766.56,0.8744256]
[1754556128327,0.87187732,767.37,766.56,0.8744256]
[1754556129223,0.87187732,767.37,766.48,0.901]
[1754556129224,0.87187732,767.36,766.55,0.8744256]
[1754556129522,0.87187732,767.36,766.56,0.8744256]
[1754556129927,0.87187732,767.37,766.55,0.8744256]
[1754556130127,0.87187732,767.38,766.55,0.8744256]
[1754556130328,0.87187732,767.51,766.48,0.901]
[1754556130623,0.22682314,767.7,766.48,0.901]
[1754556130624,0.87187732,767.42,766.48,0.901]
[1754556130827,0.87187732,767.4,766.48,0.901]
[1754556131527,0.87187732,767.39,766.48,0.901]
[1754556132223,0.87187732,767.38,766.48,0.901]
[1754556133123,0.87187732,767.34,766.48,0.901]
[1754556133325,0.87187732,767.33,766.48,0.901]
[1754556134229,0.87187732,767.32,766.48,0.901]
[1754556135427,1.169671,767.53,766.48,0.901]
[1754556135428,0.87187732,767.31,766.48,0.901]
[1754556136429,0.87187732,767.3,766.48,0.901]
[1754556138229,0.87187732,767.29,766.48,0.901]
[1754556139628,0.87187732,767.25,766.48,0.901]
[1754556140326,0.87187732,767.24,766.48,0.901]
[1754556141327,0.87187732,767.23,766.48,0.901]
[1754556141931,0.87187732,767.16,766.48,0.901]
[1754556143629,0.87187732,767.17,766.48,0.901]
[1754556144032,0.87187732,767.18,766.48,0.901]
[1754556144630,0.22682979,767.54,766.48,0.901]
[1754556144631,0.87187732,767.29,766.48,0.901]
[1754556144835,0.87187732,767.28,766.48,0.901]
[1754556145238,0.87187732,767.27,766.48,0.901]
[1754556145732,0.87187732,767.28,766.48,0.901]
[1754556146033,0.87187732,767.27,766.48,0.901]
[1754556148437,0.87187732,767.26,766.48,0.901]
[1754556149633,0.87187732,767.29,766.48,0.901]
[1754556150633,0.87187732,767.26,766.48,0.901]
[1754556152036,0.87187732,767.27,766.48,0.901]
[1754556154540,0.87187732,767.22,766.48,0.901]
[1754556155140,0.87187732,767.19,766.48,0.901]
[1754556159639,0.87187732,767.13,766.48,0.901]
[1754556160640,0.87187732,767.16,766.48,0.901]
[1754556160843,0.87187732,767.15,766.48,0.901]
[1754556161443,0.87187732,767.14,766.48,0.901]
[1754556161841,0.87187732,767.13,766.48,0.901]
[1754556162945,0.87187732,767.12,766.48,0.901]
[1754556163444,0.87187732,767.19,766.48,0.901]
[1754556163739,0.87187732,767.18,766.34,0.8744256]
[1754556163941,0.87187732,767.16,766.31,0.8744256]
[1754556164447,0.87187732,767.09,766.24,0.8744256]
[1754556165146,0.87187732,767.07,766.22,0.8744256]
[1754556165445,0.87187732,767.08,766.22,0.8744256]
[1754556166242,0.87187732,767.09,766.21,0.8744256]
[1754556166441,0.87187732,767.08,766.23,1.206]
[1754556167247,0.87187732,767.09,766.23,1.206]
[1754556169748,0.87187732,767.08,766.23,1.206]
[1754556170850,0.22682979,767.54,766.23,1.206]
[1754556170851,0.87187732,767.06,766.23,1.206]
[1754556171349,0.87187732,767.07,766.23,1.206]
[1754556173257,0.87187732,767.0,766.25,0.8744256]
[1754556174456,0.87187732,767.01,766.25,0.8744256]
[1754556178758,0.87187732,767.01,766.23,1.206]
[1754556178759,0.87187732,767.0,766.26,0.8744256]
[1754556178959,0.87187732,767.01,766.25,0.8744256]
[1754556180056,0.87187732,767.0,766.26,0.8744256]
[1754556180960,0.87187732,767.13,766.23,1.206]
[1754556183156,0.87187732,767.21,766.23,1.206]
[1754556184161,0.87187732,767.2,766.23,1.206]
[1754556184364,0.87187732,767.21,766.23,1.206]
[1754556184956,0.87187732,767.17,766.23,1.206]
[1754556185359,0.87187732,767.15,766.23,1.206]
[1754556187966,0.22682979,767.54,766.23,1.206]
[1754556187967,0.87187732,767.11,766.23,1.206]
[1754556188166,0.87187732,767.1,766.23,1.206]
[1754556188366,0.87187732,767.11,766.23,1.206]
[1754556188864,0.87187732,767.1,766.23,1.206]
[1754556189165,0.87187732,767.09,766.23,1.206]
[1754556189366,0.87187732,767.07,766.23,1.206]
[1754556190169,0.87187732,767.06,766.23,1.206]
[1754556190468,0.87187732,767.07,766.23,1.206]
[1754556192071,0.87187732,767.06,766.23,1.206]
[1754556192372,0.87187732,767.07,766.23,1.206]
[1754556192570,0.87187732,767.06,766.23,1.206]
[1754556192768,0.87187732,766.98,766.23,1.206]
[1754556193372,0.87187732,766.99,766.23,1.206]
[1754556195073,0.87187732,766.96,766.23,1.206]
[1754556197178,0.87187732,766.97,766.23,1.206]
[1754556199873,0.87187732,767.17,766.23,1.206]
[1754556201078,0.87187732,767.16,766.23,1.206]
[1754556201278,0.87187732,767.15,766.23,1.206]
[1754556201480,0.87187732,767.18,766.23,1.206]
[1754556201780,0.87187732,767.16,766.23,1.206]
[1754556202381,0.87187732,767.2,766.23,1.206]
[1754556202580,0.87187732,767.22,766.23,1.206]
[1754556204283,1.169671,767.5,766.23,1.206]
[1754556204284,0.87187732,767.21,766.23,1.206]
[1754556204679,0.87187732,767.2,766.23,1.206]
[1754556205178,0.87187732,767.19,766.23,1.206]
[1754556205680,0.87187732,767.2,766.23,1.206]
[1754556206280,0.87187732,767.19,766.23,1.206]
[1754556206484,0.87187732,767.03,766.23,1.206]
[1754556207379,0.87187732,767.02,766.23,1.206]
[1754556207582,0.87187732,767.01,766.23,1.206]
[1754556208383,0.87187732,767.01,766.22,0.8744256]
[1754556209883,0.87187732,766.99,766.23,0.8744256]
[1754556210287,0.87187732,766.98,766.23,0.8744256]
[1754556211186,0.87187732,766.98,766.24,0.8744256]
[1754556211884,0.87187732,766.98,766.25,0.829]
[1754556212289,0.87187732,766.96,766.25,1.7034256]
[1754556212885,0.87187732,766.98,766.25,0.829]
[1754556215290,0.87187732,766.97,766.25,1.7034256]
[1754556216388,0.87187732,766.95,766.27,0.8744256]
[1754556217792,0.22682979,767.54,766.25,0.829]
[1754556217793,0.87187732,767.18,766.25,0.829]
[1754556217992,0.87187732,767.11,766.25,0.829]
[1754556218290,0.87187732,767.1,766.25,0.829]
[1754556219494,0.87187732,767.09,766.25,0.829]
[1754556219696,0.87187732,767.08,766.25,0.829]
[1754556220591,0.87187732,767.03,766.25,0.829]
[1754556221395,0.87187732,767.02,766.25,0.829]
[1754556222298,0.87187732,767.01,766.25,0.829]
[1754556223194,0.87187732,767.0,766.25,0.829]
[1754556223597,0.87187732,766.98,766.25,0.829]
[1754556224298,0.87187732,766.97,766.25,0.829]
[1754556224896,0.87187732,766.93,766.25,0.829]
[1754556225201,0.87187732,766.8,766.25,0.829]
[1754556226700,0.87187732,766.8,766.22,0.8744256]
[1754556229696,0.87187732,766.81,766.23,1.231]
[1754556230298,0.87187732,766.79,766.23,1.231]
[1754556231101,0.87187732,766.8,766.23,1.231]
[1754556231303,0.87187732,766.8,766.23,2.1054256]
[1754556231898,0.87187732,766.79,766.23,2.1054256]
[1754556232504,0.87187732,766.82,766.23,1.231]
[1754556233801,0.87187732,766.85,766.23,1.231]
[1754556235606,0.87187732,766.84,766.23,1.231]
[1754556242415,0.87187732,766.83,766.23,1.231]
[1754556243816,0.87187732,766.78,766.24,0.8744256]
[1754556245423,0.87187732,766.82,766.23,1.231]
[1754556246727,0.87187732,766.86,766.23,1.231]
[1754556249234,0.87187732,766.85,766.23,1.231]
[1754556250930,0.87187732,766.94,766.23,1.231]
[1754556255330,0.87187732,766.95,766.23,1.231]
[1754556257335,0.87187732,766.91,766.23,1.231]
[1754556259739,0.87187732,766.9,766.23,1.231]
[1754556260638,0.87187732,766.78,766.23,1.231]
[1754556263349,0.87187732,766.77,766.23,1.231]
[1754556263540,0.87187732,766.78,766.23,1.231]
[1754556264143,0.87187732,766.76,766.23,1.231]
[1754556264440,0.87187732,766.75,766.23,1.231]
[1754556264644,0.87187732,766.73,766.23,1.231]
[1754556267342,0.87187732,766.72,766.23,1.231]
[1754556267746,1.169671,766.86,766.23,1.231]
[1754556267747,0.87187732,766.73,766.23,1.231]
[1754556268041,0.87187732,766.72,766.23,1.231]
[1754556268752,0.87187732,766.73,766.23,1.231]
[1754556269344,0.87187732,766.72,766.23,1.231]
[1754556270342,0.87187732,766.69,766.23,1.231]
[1754556271947,0.87187732,766.7,766.23,1.231]
[1754556272341,0.87187732,766.69,766.23,1.231]
[1754556275351,0.87187732,766.72,766.23,1.231]
[1754556277252,0.87187732,766.71,766.23,1.231]
[1754556277453,1.169671,766.86,766.23,1.231]
[1754556277654,0.87535358,766.71,766.23,1.231]
[1754556279548,0.87535358,766.71,766.17,0.87930665]
[1754556281856,0.87535358,766.73,766.16,0.87930665]
[1754556282959,0.87535358,766.92,766.05,0.87930665]
[1754556283154,0.87535358,766.84,766.11,0.87930665]
[1754556283558,0.87535358,766.92,766.06,0.932]
[1754556283960,0.87535358,767.08,766.22,0.87930665]
[1754556284255,0.87535358,767.12,766.27,0.87930665]
[1754556284455,0.87535358,767.13,766.26,0.87930665]
[1754556284856,0.87535358,767.11,766.24,0.87930665]
[1754556285360,0.87535358,767.11,766.23,0.87930665]
[1754556286058,0.87535358,767.11,766.24,0.87930665]
[1754556286255,0.87535358,767.11,766.23,0.87930665]
[1754556286458,0.87535358,767.12,766.23,0.87930665]
[1754556287358,0.87535358,767.13,766.22,0.87930665]
[1754556287962,0.87535358,767.11,766.23,0.87930665]
[1754556288461,0.87535358,767.12,766.23,0.87930665]
[1754556289463,0.87535358,767.12,766.22,0.87930665]
[1754556290463,0.87535358,767.13,766.22,0.87930665]
[1754556291460,0.87535358,767.14,766.21,0.87930665]
[1754556293460,0.87535358,767.04,766.27,0.87930665]
[1754556293761,0.87535358,767.05,766.27,0.87930665]
[1754556294464,0.87535358,766.94,766.33,0.87930665]
[1754556294662,0.87535358,766.95,766.33,0.87930665]
[1754556296262,0.87535358,766.96,766.33,0.87930665]
[1754556297361,0.87535358,766.96,766.2,1.166122]
[1754556297362,0.87535358,766.96,766.32,0.87930665]
[1754556298667,0.87535358,766.96,766.2,1.166122]
[1754556298668,0.87535358,766.98,766.31,0.87930665]
[1754556299263,0.87535358,766.98,766.32,0.87930665]
[1754556299463,0.87535358,766.98,766.31,0.87930665]
[1754556301669,0.87535358,766.99,766.31,0.87930665]
[1754556303472,0.87535358,766.99,766.3,0.87930665]
[1754556306273,0.87535358,767.0,766.29,0.87930665]
[1754556306472,0.87535358,767.01,766.29,0.87930665]
[1754556307075,0.87535358,767.02,766.29,0.87930665]
[1754556307377,0.87535358,767.02,766.3,1.029]
[1754556308879,0.87535358,767.1,766.3,1.029]
[1754556310576,0.87535358,767.11,766.3,1.029]
[1754556313182,0.87535358,767.1,766.3,1.029]
[1754556313977,0.87535358,767.11,766.3,1.029]
[1754556314779,0.87535358,767.13,766.3,1.029]
[1754556314978,0.87535358,767.12,766.3,1.029]
[1754556316683,0.87535358,767.13,766.3,1.029]
[1754556316883,0.87535358,767.12,766.3,1.029]
[1754556317183,0.87535358,767.04,766.3,1.90830665]
[1754556317484,0.87535358,767.05,766.3,1.90830665]
[1754556318385,0.87535358,767.05,766.3,0.87930665]
[1754556318786,0.87535358,767.04,766.3,0.87930665]
[1754556320488,0.87535358,767.01,766.32,0.87930665]
[1754556320988,0.87535358,767.01,766.33,1.064]
[1754556321289,0.87535358,767.01,766.33,1.94330665]
[1754556321688,0.87535358,767.05,766.33,1.064]
[1754556321889,0.87535358,767.11,766.33,1.064]
[1754556323084,0.87535358,767.12,766.33,1.064]
[1754556325591,0.87535358,767.33,766.36,0.87930665]
[1754556326191,0.87535358,767.33,766.35,0.87930665]
[1754556327189,0.87535358,767.29,766.38,0.87930665]
[1754556328093,0.87535358,767.29,766.4,0.87930665]
[1754556328291,1.169671,767.48,766.33,1.064]
[1754556328591,0.22683349,767.62,766.33,1.064]
[1754556329795,0.22683349,767.62,766.49,0.87602996]
[1754556329796,0.87391518,767.35,766.49,0.87602996]
[1754556330191,0.87391518,767.35,766.33,1.064]
[1754556330192,0.87391518,767.34,766.48,0.87602996]
[1754556330394,0.87391518,767.33,766.48,0.87602996]
[1754556330992,0.87391518,767.33,766.49,0.87602996]
[1754556331490,0.87391518,767.34,766.48,0.87602996]
[1754556332296,0.87391518,767.31,766.5,0.87602996]
[1754556332495,0.87391518,767.31,766.51,0.87602996]
[1754556334194,0.87391518,767.32,766.5,0.87602996]
[1754556334499,0.87391518,767.31,766.5,0.87602996]
[1754556334698,0.87391518,767.33,766.49,0.87602996]
[1754556335194,0.87391518,767.34,766.49,0.87602996]
[1754556336900,0.87391518,767.38,766.46,0.87602996]
[1754556337302,0.87391518,767.39,766.45,0.87602996]
[1754556337600,0.87391518,767.38,766.46,0.87602996]
[1754556338196,0.87391518,767.39,766.45,0.87602996]
[1754556338401,0.87391518,767.38,766.46,0.87602996]
[1754556339202,0.87391518,767.38,766.45,0.87602996]
[1754556339405,0.87391518,767.38,766.46,0.87602996]
[1754556340300,0.87391518,767.38,766.45,0.87602996]
[1754556340500,0.87391518,767.38,766.46,0.87602996]
[1754556341403,0.87391518,767.37,766.46,0.87602996]
[1754556342304,0.87391518,767.38,766.46,0.87602996]
[1754556342506,0.87391518,767.37,766.47,0.87602996]
[1754556343306,0.87391518,767.37,766.46,0.87602996]
[1754556343506,0.87391518,767.36,766.47,0.87602996]
[1754556343906,0.87391518,767.35,766.48,0.87602996]
[1754556344106,0.87391518,767.34,766.49,0.87602996]
[1754556344401,0.87391518,767.34,766.48,0.87602996]
[1754556345106,0.87391518,767.27,766.53,0.87602996]
[1754556345908,0.87391518,767.28,766.52,0.87602996]
[1754556346706,0.87391518,767.28,766.53,0.793]
[1754556348406,0.87391518,767.29,766.53,0.793]
[1754556348806,1.7478303,767.57,766.53,0.793]
[1754556348807,0.87391518,767.28,766.53,1.66902996]
[1754556349010,0.87391518,767.27,766.53,1.66902996]
[1754556349613,0.87391518,767.28,766.53,1.66902996]
[1754556349910,0.87391518,767.27,766.53,1.66902996]
[1754556351315,0.87391518,767.27,766.53,0.793]
[1754556351615,0.87391518,767.28,766.53,0.793]
[1754556352713,0.87391518,767.3,766.53,0.793]
[1754556355418,0.87391518,767.29,766.53,0.793]
[1754556356913,0.87391518,767.28,766.53,0.793]
[1754556357116,0.87391518,767.29,766.53,0.793]
[1754556357322,0.87391518,767.28,766.53,0.793]
[1754556361422,0.87391518,767.27,766.53,0.793]
[1754556362623,0.87391518,767.25,766.54,0.87602996]
[1754556363224,0.87391518,767.25,766.53,1.66902996]
[1754556363422,0.87391518,767.25,766.54,0.87602996]
[1754556363919,0.87391518,767.25,766.53,1.66902996]
[1754556364723,0.87391518,767.25,766.54,0.87602996]
[1754556364922,0.87391518,767.25,766.53,1.66902996]
[1754556365122,0.87300181,767.25,766.53,1.66915699]
[1754556365323,0.87300181,767.25,766.54,0.87615699]
[1754556367123,0.87300181,767.24,766.54,0.87615699]
[1754556368322,0.87300181,767.24,766.55,0.87615699]
[1754556368519,0.87300181,767.23,766.55,0.87615699]
[1754556370324,0.87300181,767.22,766.56,0.87615699]
[1754556371324,0.87300181,767.22,766.57,0.87615699]
[1754556371524,0.87300181,767.28,766.53,0.793]
[1754556371924,0.87300181,767.3,766.53,0.793]
[1754556372220,0.87300181,767.19,766.53,0.793]
[1754556372423,0.87300181,767.18,766.53,0.793]
[1754556373421,0.87300181,767.13,766.53,0.793]
[1754556373620,1.1652202,767.31,766.53,0.793]
[1754556373621,0.87300181,767.14,766.53,0.793]
[1754556374226,1.1652202,767.31,766.53,0.793]
[1754556374227,0.87300181,767.13,766.53,0.793]
[1754556374927,0.87300181,767.12,766.53,0.793]
[1754556375122,0.22683349,767.62,766.53,0.793]
[1754556375123,0.87300181,767.11,766.53,0.793]
[1754556378425,0.87300181,767.1,766.53,0.793]
[1754556379536,0.87300181,767.09,766.53,0.793]
[1754556379937,0.87300181,767.08,766.53,0.793]
[1754556380137,0.87300181,767.07,766.53,0.793]
[1754556380341,0.87300181,767.06,766.53,0.793]
[1754556382340,0.87300181,767.07,766.53,0.793]
[1754556383842,0.87300181,767.06,766.53,0.793]
[1754556384036,0.87300181,767.05,766.53,0.793]
[1754556385236,0.87300181,767.07,766.53,0.793]
[1754556385738,0.87300181,767.09,766.53,0.793]
[1754556386139,0.87300181,767.38,766.53,0.793]
[1754556386340,0.87300181,767.39,766.53,0.793]
[1754556387338,0.87300181,767.4,766.53,0.793]
[1754556388838,0.87300181,767.4,766.22,0.87615699]
[1754556392841,0.87300181,767.4,766.23,1.14]
[1754556396044,0.87300181,767.24,766.32,0.87615699]
[1754556399044,0.87300181,767.07,766.44,0.87615699]
[1754556401241,0.87300181,767.08,766.43,0.87615699]
[1754556403546,0.87300181,767.06,766.44,0.87615699]
[1754556404748,0.87300181,767.06,766.45,0.87615699]
[1754556407353,0.87300181,767.17,766.38,0.87615699]
[1754556407650,0.87300181,767.15,766.36,0.87615699]
[1754556408755,0.87300181,767.14,766.36,0.87615699]
[1754556409053,0.87300181,767.15,766.36,0.87615699]
[1754556410055,0.87300181,767.02,766.23,2.01615699]
[1754556410250,0.87300181,767.03,766.23,2.01615699]
[1754556410556,0.87300181,767.0,766.23,1.14]
[1754556411156,0.87300181,766.99,766.23,1.14]
[1754556411351,0.87300181,767.01,766.23,1.14]
[1754556412253,0.87300181,767.02,766.23,1.14]
[1754556413458,0.87300181,767.0,766.23,1.14]
[1754556414154,0.87300181,766.98,766.23,1.14]
[1754556414959,0.87300181,766.99,766.23,1.14]
[1754556417159,0.87300181,766.96,766.24,0.87615699]
[1754556417362,0.87300181,766.96,766.23,2.01615699]
[1754556417558,0.87300181,766.96,766.24,0.87615699]
[1754556418260,0.87300181,766.96,766.23,2.01615699]
[1754556418457,0.87300181,766.96,766.24,0.87615699]
[1754556419261,0.87300181,766.96,766.23,2.01615699]
[1754556419462,0.87300181,766.96,766.24,0.87615699]
[1754556419760,0.87300181,766.96,766.23,2.01615699]
[1754556419957,0.87300181,766.95,766.23,2.01615699]
[1754556420361,0.87300181,766.96,766.23,2.01615699]
[1754556420562,0.87300181,766.98,766.23,1.14]
[1754556421261,0.87300181,766.97,766.23,1.14]
[1754556421660,0.87300181,766.98,766.23,1.14]
[1754556423163,0.87300181,766.97,766.23,1.14]
[1754556424864,0.87300181,766.96,766.23,2.01615699]
[1754556426561,0.87300181,766.97,766.23,1.14]
[1754556427262,0.87300181,766.97,766.23,2.01615699]
[1754556427763,0.87300181,766.98,766.22,0.87615699]
[1754556428267,0.87300181,766.98,766.23,0.87615699]
[1754556428466,0.87300181,766.98,766.22,0.87615699]
[1754556428964,0.87300181,766.98,766.23,0.87615699]
[1754556429266,0.87300181,766.97,766.23,0.87615699]
[1754556430268,0.87300181,766.96,766.24,0.87615699]
[1754556430464,0.87300181,766.95,766.25,0.87615699]
[1754556431266,0.87300181,766.94,766.25,0.87615699]
[1754556431566,0.87300181,766.94,766.26,0.87615699]
[1754556431766,0.87300181,766.94,766.26,2.07615699]
[1754556431964,0.87300181,766.93,766.26,1.2]
[1754556432165,0.87300181,766.94,766.26,2.07615699]
[1754556432768,0.87300181,766.95,766.26,1.2]
[1754556433772,0.87300181,766.95,766.26,2.07615699]
[1754556433969,0.87300181,766.97,766.28,0.87615699]
[1754556436374,0.87300181,766.96,766.29,0.87615699]
[1754556437573,0.87300181,766.94,766.3,0.87615699]
[1754556438377,1.1652202,767.07,766.3,0.87615699]
[1754556438576,0.87284108,766.94,766.3,0.87757082]
[1754556438773,0.87284108,766.93,766.3,0.87757082]
[1754556438977,0.87284108,766.94,766.3,0.87757082]
[1754556439178,0.87284108,766.95,766.27,0.87757082]
[1754556439579,1.1652202,767.1,766.26,1.2]
[1754556439780,0.87279701,766.96,766.28,0.87756994]
[1754556442681,0.87279701,766.97,766.28,0.87756994]
[1754556443977,0.87279701,766.96,766.28,0.87756994]
[1754556444581,0.87279701,766.97,766.28,0.87756994]
[1754556445181,0.87279701,766.96,766.28,0.87756994]
[1754556446383,0.87279701,766.96,766.29,0.87756994]
[1754556447485,0.87279701,766.97,766.26,2.07756994]
[1754556447685,0.87279701,766.98,766.27,0.87756994]
[1754556448387,0.87279701,767.0,766.26,2.07756994]
[1754556449088,0.87279701,766.99,766.27,0.87756994]
[1754556452391,0.87279701,766.98,766.27,0.87756994]
[1754556452591,0.87279701,766.96,766.26,2.07756994]
[1754556453792,0.87279701,767.02,766.26,1.2]
[1754556454092,0.22683349,767.62,766.26,1.2]
[1754556454093,0.87279701,766.96,766.26,1.2]
[1754556454391,0.87279701,766.95,766.26,1.2]
[1754556454787,0.87279701,766.96,766.26,1.2]
[1754556455288,0.87279701,766.95,766.26,1.2]
[1754556458288,0.87279701,766.94,766.26,1.2]
[1754556459593,0.87279701,766.89,766.26,1.2]
[1754556461491,0.87279701,766.87,766.26,1.2]
[1754556462294,0.87279701,766.9,766.26,1.2]
[1754556462492,0.87279701,766.89,766.26,1.2]
[1754556464294,1.1652202,767.06,766.26,1.2]
[1754556464295,0.87279701,766.88,766.26,1.2]
[1754556465393,0.87279701,766.87,766.26,1.2]
[1754556467195,0.87279701,766.86,766.26,1.2]
[1754556468400,0.87279701,766.85,766.26,1.2]
[1754556469395,0.87279701,766.84,766.26,1.2]
[1754556472402,0.87279701,766.8,766.26,2.07756994]
[1754556473005,0.87279701,766.8,766.27,0.87756994]